bitfinex-derivatives/quotes_BTCF0:USTF0_20240825
["timestamp","ask_amount","ask_price","bid_price","bid_amount"]
[1724548210918,0.23519329,64340.0,64339.0,0.00023301]
[1724548211315,0.157715,64340.0,64339.0,0.00023301]
[1724548211718,0.158715,64340.0,64339.0,0.02552083]
[1724548212118,0.158715,64340.0,64339.0,0.07209289]
[1724548212317,0.158715,64340.0,64339.0,0.00123301]
[1724548212917,0.159715,64340.0,64339.0,0.00123301]
[1724548214417,0.54570005,64340.0,64339.0,0.00123301]
[1724548214824,0.63877493,64340.0,64339.0,0.00123301]
[1724548215422,0.54570005,64340.0,64339.0,0.00123301]
[1724548215623,0.520515,64340.0,64339.0,0.00123301]
[1724548215843,0.54570123,64340.0,64339.0,0.00123301]
[1724548216514,0.54570123,64340.0,64327.0,0.06212757]
[1724548216515,1.33430623,64340.0,64328.0,0.04657206]
[1724548216720,0.077689,64328.0,64327.0,0.04657206]
[1724548216921,0.21959443,64328.0,64327.0,0.02429159]
[1724548217125,0.26519443,64328.0,64326.0,0.04657206]
[1724548217327,0.13959643,64327.0,64324.0,0.04657206]
[1724548217621,0.08,64325.0,64324.0,0.04657206]
[1724548217822,0.08,64325.0,64323.0,0.04657206]
[1724548218428,0.12639135,64325.0,64323.0,0.12426706]
[1724548218628,4e-05,64324.0,64323.0,0.12426706]
[1724548218820,4e-05,64324.0,64323.0,0.14855945]
[1724548219419,4e-05,64324.0,64323.0,0.077695]
[1724548221327,0.00104,64324.0,64323.0,0.077695]
[1724548221732,0.00204,64324.0,64323.0,0.077695]
[1724548225037,0.00204,64324.0,64319.0,0.00023301]
[1724548225237,0.4408,64320.0,64319.0,0.00023301]
[1724548225824,0.518539,64320.0,64319.0,0.00023301]
[1724548226224,0.518539,64320.0,64312.0,0.04657206]
[1724548226225,0.077709,64312.0,64308.0,0.04657206]
[1724548226431,0.077709,64312.0,64299.0,0.07754864]
[1724548226432,0.4408,64309.0,64302.0,0.04672962]
[1724548226735,0.08,64303.0,64302.0,0.07787856]
[1724548226954,0.08,64303.0,64302.0,0.08177207]
[1724548227128,0.08,64303.0,64302.0,0.07787856]
[1724548227436,0.08,64303.0,64302.0,0.00015756]
[1724548227437,0.44084,64303.0,64302.0,0.00015756]
[1724548228029,0.9074,64303.0,64296.0,0.0002332]
[1724548228227,0.4408,64297.0,64296.0,0.0002332]
[1724548228836,0.44084,64297.0,64296.0,0.0002332]
[1724548229031,0.44099756,64297.0,64296.0,0.0002332]
[1724548229540,0.44600756,64297.0,64296.0,0.0002332]
[1724548229842,0.44700756,64297.0,64296.0,0.0002332]
[1724548230028,0.44700756,64297.0,64296.0,0.8668332]
[1724548230029,0.36700756,64297.0,64296.0,0.8668332]
[1724548230233,0.001,64303.0,64296.0,0.8832332]
[1724548230433,0.001,64303.0,64301.0,0.077722]
[1724548230639,0.3610332,64309.0,64302.0,0.0477]
[1724548231235,0.3610332,64309.0,64308.0,0.077714]
[1724548231738,0.0002332,64309.0,64308.0,0.077714]
[1724548232045,0.0012332,64309.0,64308.0,0.077714]
[1724548232431,0.0002332,64309.0,64308.0,0.077714]
[1724548232734,0.0022332,64309.0,64308.0,0.077714]
[1724548236546,0.0022332,64309.0,64308.0,0.982748]
[1724548236547,2e-07,64309.0,64308.0,0.982748]
[1724548236746,0.0492,64324.0,64323.0,0.077695]
[1724548237740,0.0492,64324.0,64317.0,0.3610332]
[1724548237741,0.04641964,64330.0,64317.0,0.3610332]
[1724548237940,0.0002332,64330.0,64318.0,0.0455]
[1724548238144,0.0002332,64330.0,64329.0,0.077688]
[1724548239442,0.0012332,64330.0,64329.0,0.077688]
[1724548240748,0.0052332,64330.0,64329.0,0.077688]
[1724548240948,0.0042332,64330.0,64329.0,0.078688]
[1724548241543,0.0002332,64330.0,64329.0,0.080688]
[1724548242151,0.04641964,64330.0,64329.0,0.080688]
[1724548242338,0.0002332,64330.0,64329.0,0.080688]
[1724548243346,0.00422965,64330.0,64329.0,0.080688]
[1724548243551,0.0002332,64330.0,64329.0,0.080688]
[1724548248850,0.3610332,64330.0,64329.0,0.080688]
[1724548249451,0.0002332,64330.0,64329.0,0.080688]
[1724548249650,0.3610332,64330.0,64329.0,0.080688]
[1724548250844,0.0002332,64330.0,64329.0,0.080688]
[1724548251045,0.3610332,64330.0,64329.0,0.080688]
[1724548251950,0.0002332,64330.0,64329.0,0.080688]
[1724548252252,0.3610332,64330.0,64329.0,0.080688]
[1724548259750,0.0002332,64330.0,64329.0,0.080688]
[1724548260061,0.3610332,64330.0,64329.0,0.080688]
[1724548261258,0.4106332,64330.0,64329.0,0.080688]
[1724548261452,0.47253863,64330.0,64329.0,0.080688]
[1724548261658,0.4106332,64330.0,64329.0,0.080688]
[1724548261963,0.4106332,64330.0,64329.0,0.003]
[1724548262197,0.4106332,64330.0,64323.0,0.077695]
[1724548262198,0.95437499,64330.0,64323.0,0.077695]
[1724548262351,0.61268411,64324.0,64323.0,0.077695]
[1724548262958,0.61272411,64324.0,64323.0,0.077695]
[1724548263363,0.628534,64324.0,64323.0,0.077695]
[1724548263665,0.629534,64324.0,64323.0,0.084695]
[1724548264258,0.6325135,64324.0,64323.0,0.082695]
[1724548264456,0.6325135,64324.0,64323.0,0.005]
[1724548264968,0.36184,64324.0,64323.0,0.082695]
[1724548265556,0.36084,64324.0,64323.0,0.082695]
[1724548265766,0.55184,64324.0,64323.0,0.082695]
[1724548266363,0.62922179,64324.0,64323.0,0.077695]
[1724548266553,0.63022179,64324.0,64323.0,0.083695]
[1724548266958,0.63022179,64324.0,64320.0,0.04657206]
[1724548266959,0.62922179,64324.0,64320.0,0.04657206]
[1724548267164,0.62922179,64324.0,64323.0,0.004]
[1724548267360,0.5770304,64324.0,64323.0,0.004]
[1724548267563,0.6547254,64324.0,64320.0,0.077699]
[1724548267760,0.630535,64324.0,64323.0,0.006]
[1724548267958,0.65572616,64324.0,64323.0,0.006]
[1724548268160,0.077696,64323.0,64320.0,0.077699]
[1724548268464,0.11804931,64323.0,64320.0,0.077699]
[1724548268688,0.077699,64320.0,64317.0,0.0002332]
[1724548268966,0.12265829,64319.0,64317.0,0.0002332]
[1724548269566,0.12265829,64319.0,64317.0,0.0779362]
[1724548269567,4e-05,64318.0,64317.0,0.0779362]
[1724548270670,0.36084,64318.0,64317.0,0.0779362]
[1724548270860,0.62829829,64318.0,64317.0,0.0779362]
[1724548271167,0.65473485,64318.0,64317.0,0.0092332]
[1724548272115,0.65573485,64318.0,64317.0,0.0092332]
[1724548273267,0.65957658,64318.0,64317.0,0.0092332]
[1724548273573,0.711804,64318.0,64317.0,0.0092332]
[1724548273871,0.63438373,64318.0,64317.0,0.0092332]
[1724548274464,0.71178357,64318.0,64317.0,0.0092332]
[1724548274764,0.65957909,64318.0,64317.0,0.0092332]
[1724548275162,0.07771,64312.0,64309.0,0.077712]
[1724548275423,0.628511,64310.0,64307.0,0.077715]
[1724548275562,0.04641622,64309.0,64307.0,0.077715]
[1724548275767,0.628511,64310.0,64307.0,0.077715]
[1724548275768,0.077714,64308.0,64307.0,0.077715]
[1724548276066,0.077716,64307.0,64303.0,0.12429206]
[1724548276264,0.077716,64307.0,64301.0,0.04677831]
[1724548276265,0.077721,64302.0,64301.0,0.04677831]
[1724548276459,0.077721,64302.0,64301.0,0.0002332]
[1724548277068,0.622042,64302.0,64301.0,0.0002332]
[1724548277272,0.077733,64292.0,64287.0,0.0006]
[1724548277470,0.3608,64288.0,64287.0,0.0006]
[1724548277991,0.36084,64288.0,64287.0,0.0006]
[1724548279370,0.36184,64288.0,64287.0,0.0006]
[1724548279576,0.36284,64288.0,64287.0,0.0006]
[1724548281374,0.36679038,64288.0,64287.0,0.0006]
[1724548282262,0.83343038,64288.0,64281.0,0.00015641]
[1724548282463,0.5508,64282.0,64265.0,0.0935]
[1724548282682,0.3608,64271.0,64265.0,0.0935]
[1724548283773,0.3608,64271.0,64270.0,0.07776]
[1724548285277,0.0002334,64274.0,64273.0,0.077756]
[1724548287663,0.3608,64282.0,64281.0,0.077746]
[1724548288774,0.3618,64282.0,64281.0,0.080746]
[1724548289078,0.3628,64282.0,64281.0,0.080746]
[1724548292081,0.002,64282.0,64281.0,0.080746]
[1724548292275,0.3628,64282.0,64281.0,0.080746]
[1724548294671,0.002,64282.0,64281.0,0.080746]
[1724548294872,0.3628,64282.0,64281.0,0.080746]
[1724548296274,0.5528,64282.0,64281.0,0.080746]
[1724548296674,0.5528,64282.0,64281.0,0.003]
[1724548297682,1.01948,64282.0,64281.0,0.003]
[1724548297873,0.630545,64282.0,64281.0,0.003]
[1724548305482,0.69235329,64282.0,64281.0,0.003]
[1724548306373,0.630545,64282.0,64281.0,0.003]
[1724548307393,0.630545,64282.0,64281.0,0.080746]
[1724548307785,0.269745,64282.0,64281.0,0.080746]
[1724548307984,0.630545,64282.0,64281.0,0.080746]
[1724548308686,0.5528,64282.0,64281.0,0.080746]
[1724548308892,0.3628,64282.0,64281.0,0.080746]
[1724548309482,0.42478004,64282.0,64281.0,0.080746]
[1724548310783,0.06398004,64282.0,64281.0,0.080746]
[1724548314192,0.002,64282.0,64281.0,0.080746]
[1724548317888,0.002,64282.0,64281.0,0.12737299]
[1724548320495,0.002,64282.0,64281.0,0.080746]
[1724548321298,0.269745,64282.0,64281.0,0.003]
[1724548321696,0.318445,64282.0,64281.0,0.003]
[1724548322596,0.208445,64282.0,64281.0,0.003]
[1724548323597,0.159745,64282.0,64281.0,0.003]
[1724548324093,0.079745,64282.0,64281.0,0.003]
[1724548324294,0.159745,64282.0,64281.0,0.003]
[1724548324704,0.082,64282.0,64281.0,0.12737299]
[1724548324998,0.082,64282.0,64281.0,0.080746]
[1724548332894,3e-07,64284.0,64282.0,0.46668]
[1724548333095,0.0002734,64288.0,64287.0,0.155478]
[1724548333346,4e-07,64288.0,64287.0,0.35393523]
[1724548333500,4e-07,64288.0,64287.0,1.24001956]
[1724548333799,4e-07,64288.0,64287.0,1.24005956]
[1724548334105,0.04644775,64304.0,64302.0,0.077721]
[1724548334296,0.04644775,64306.0,64304.0,0.077718]
[1724548334502,0.04644775,64311.0,64309.0,0.077712]
[1724548335640,0.04644775,64313.0,64310.0,0.07771]
[1724548335705,0.04644775,64313.0,64304.0,0.0032334]
[1724548335706,0.04644775,64311.0,64304.0,0.0032334]
[1724548335907,0.04635414,64310.0,64309.0,0.003]
[1724548336596,0.04735414,64311.0,64309.0,0.003]
[1724548336601,0.04835414,64311.0,64309.0,0.012]
[1724548337101,0.002,64311.0,64309.0,0.012]
[1724548337400,0.001,64310.0,64309.0,0.012]
[1724548337606,0.001,64310.0,64309.0,0.009]
[1724548338403,0.001,64310.0,64309.0,0.017]
[1724548338803,0.19,64312.0,64308.0,0.077713]
[1724548339105,0.001,64310.0,64309.0,0.017]
[1724548339717,0.001,64310.0,64309.0,0.008]
[1724548340000,0.001,64310.0,64309.0,0.093712]
[1724548340600,0.19,64312.0,64309.0,0.085712]
[1724548341314,0.19,64312.0,64309.0,0.092712]
[1724548341602,0.19,64312.0,64311.0,4e-05]
[1724548341817,0.00400891,64313.0,64311.0,4e-05]
[1724548342106,0.439307,64314.0,64311.0,4e-05]
[1724548342297,0.001,64312.0,64311.0,4e-05]
[1724548343429,0.44328085,64314.0,64311.0,4e-05]
[1724548343430,0.001,64313.0,64312.0,0.077709]
[1724548343504,0.001,64313.0,64312.0,0.438509]
[1724548344206,0.001,64313.0,64312.0,0.438549]
[1724548344612,0.001,64313.0,64312.0,0.443549]
[1724548345804,0.0492334,64316.0,64315.0,0.077705]
[1724548346507,0.0492334,64316.0,64315.0,0.077745]
[1724548347207,0.0492334,64316.0,64315.0,0.079745]
[1724548347607,0.0492334,64316.0,64315.0,0.082745]
[1724548348404,0.0492334,64316.0,64315.0,0.00504]
[1724548348609,0.1269374,64316.0,64315.0,0.00504]
[1724548348802,0.2219374,64316.0,64315.0,0.00504]
[1724548355921,0.5827374,64316.0,64315.0,0.00504]
[1724548356704,0.2219374,64316.0,64315.0,0.00504]
[1724548357005,0.5827374,64316.0,64315.0,0.00504]
[1724548357710,0.2219374,64316.0,64315.0,0.00504]
[1724548357915,0.5827374,64316.0,64315.0,0.00504]
[1724548360611,0.2219374,64316.0,64315.0,0.00504]
[1724548360820,0.5827374,64316.0,64315.0,0.00504]
[1724548361710,0.2219374,64316.0,64315.0,0.00504]
[1724548362111,0.5827374,64316.0,64315.0,0.00504]
[1724548362510,0.6627374,64316.0,64315.0,0.00504]
[1724548362815,0.68793308,64316.0,64315.0,0.00504]
[1724548363522,0.78065527,64316.0,64315.0,0.00504]
[1724548364413,0.68793308,64316.0,64315.0,0.00504]
[1724548366623,0.78065527,64316.0,64315.0,0.00504]
[1724548367724,0.41985527,64316.0,64315.0,0.00504]
[1724548368119,0.78065527,64316.0,64315.0,0.00504]
[1724548368872,0.41985527,64316.0,64315.0,0.00504]
[1724548369020,0.78065527,64316.0,64315.0,0.00504]
[1724548369615,0.68793308,64316.0,64315.0,0.00504]
[1724548369819,0.32713308,64316.0,64315.0,0.00504]
[1724548370015,0.68793308,64316.0,64315.0,0.00504]
[1724548375222,0.68793302,64316.0,64315.0,0.00504]
[1724548375818,0.78065521,64316.0,64315.0,0.00504]
[1724548376523,0.68793302,64316.0,64315.0,0.00504]
[1724548377224,0.59293302,64316.0,64315.0,0.00504]
[1724548378424,0.62295077,64316.0,64315.0,0.00504]
[1724548380026,0.62295076,64316.0,64315.0,0.00504]
[1724548381427,0.59293301,64316.0,64315.0,0.00504]
[1724548381623,0.62295069,64316.0,64315.0,0.00504]
[1724548382225,0.54295069,64316.0,64315.0,0.00504]
[1724548382431,0.54393301,64316.0,64315.0,0.00504]
[1724548383323,0.63708134,64316.0,64315.0,0.00504]
[1724548384032,0.38622792,64316.0,64315.0,0.082745]
[1724548384236,0.0002334,64316.0,64315.0,0.949185]
[1724548384528,0.04656121,64320.0,64315.0,1.35067697]
[1724548384827,0.08,64327.0,64315.0,1.35067697]
[1724548384828,0.04656121,64321.0,64318.0,0.08]
[1724548385034,0.04656121,64322.0,64321.0,0.077698]
[1724548385231,0.08,64327.0,64323.0,0.077696]
[1724548385232,0.04656121,64324.0,64323.0,0.077696]
[1724548385434,0.04656121,64324.0,64323.0,0.10198732]
[1724548385629,0.04656121,64324.0,64323.0,0.077696]
[1724548385833,0.04656121,64326.0,64323.0,0.16636507]
[1724548386034,0.04656121,64326.0,64324.0,0.02428997]
[1724548386234,0.04656121,64327.0,64326.0,0.077692]
[1724548386730,0.12656121,64328.0,64327.0,0.077691]
[1724548387131,0.08,64328.0,64327.0,0.077691]
[1724548387536,0.08,64328.0,64327.0,0.077731]
[1724548387834,0.04646403,64329.0,64328.0,0.077689]
[1724548388233,0.12669724,64330.0,64329.0,0.077688]
[1724548388425,0.08023321,64330.0,64329.0,0.077688]
[1724548389044,0.08023321,64330.0,64329.0,0.077728]
[1724548389608,0.08423321,64330.0,64329.0,0.077728]
[1724548390046,0.09023321,64330.0,64329.0,0.078728]
[1724548399351,0.01023321,64330.0,64329.0,0.078728]
[1724548404448,0.01023321,64330.0,64329.0,0.545088]
[1724548404650,0.01023321,64330.0,64329.0,0.078728]
[1724548405247,0.01023321,64330.0,64329.0,0.945088]
[1724548412361,0.01023321,64330.0,64329.0,0.99161148]
[1724548413569,0.01023321,64330.0,64329.0,0.945088]
[1724548414265,0.01023321,64330.0,64329.0,1.0071631]
[1724548414655,0.01023321,64330.0,64329.0,0.6071631]
[1724548416558,0.01023321,64330.0,64329.0,0.622776]
[1724548416780,0.01023321,64330.0,64329.0,1.21881573]
[1724548417163,0.01023321,64330.0,64329.0,1.14114377]
[1724548417471,0.01023321,64330.0,64329.0,1.21877251]
[1724548417762,0.01023321,64330.0,64329.0,0.81877251]
[1724548417967,0.01023321,64330.0,64329.0,0.74114377]
[1724548418369,0.01023321,64330.0,64329.0,0.81876457]
[1724548419072,0.01023321,64330.0,64329.0,0.622776]
[1724548419259,0.01023321,64330.0,64329.0,1.022776]
[1724548420063,0.01023321,64330.0,64329.0,0.156416]
[1724548420367,0.01023321,64330.0,64329.0,0.236416]
[1724548420569,0.01023321,64330.0,64329.0,0.702776]
[1724548421670,0.01023321,64330.0,64329.0,0.236416]
[1724548423268,0.01023321,64330.0,64329.0,0.702776]
[1724548423665,0.01023321,64330.0,64329.0,0.236416]
[1724548424665,0.05681554,64330.0,64329.0,0.158728]
[1724548429077,0.05681554,64330.0,64329.0,0.519528]
[1724548429381,0.01023321,64330.0,64329.0,0.519528]
[1724548430280,0.05681109,64330.0,64329.0,0.519528]
[1724548431307,0.01023321,64330.0,64329.0,0.519528]
[1724548431776,0.01023321,64330.0,64329.0,0.71551376]
[1724548431976,0.01023321,64330.0,64329.0,0.65732255]
[1724548432880,0.01023321,64330.0,64329.0,0.73501055]
[1724548433382,0.01023321,64330.0,64329.0,1.20137055]
[1724548434681,0.01023321,64330.0,64329.0,0.73501055]
[1724548435207,0.01023321,64330.0,64329.0,0.73501001]
[1724548437695,0.01023321,64330.0,64329.0,1.60137001]
[1724548440280,0.01023321,64330.0,64329.0,1.52368201]
[1724548440575,0.01023321,64330.0,64329.0,1.60136622]
[1724548440779,0.01023321,64330.0,64329.0,1.52367815]
[1724548441177,0.01023321,64330.0,64329.0,0.57731815]
[1724548441381,0.01023321,64330.0,64329.0,0.65731815]
[1724548441679,0.01023321,64330.0,64329.0,0.63788917]
[1724548444381,0.01023321,64330.0,64329.0,0.55788917]
[1724548444581,0.01023321,64330.0,64329.0,0.63788917]
[1724548445091,0.01023321,64330.0,64329.0,0.00104]
[1724548445285,0.08792021,64330.0,64329.0,0.04659244]
[1724548445584,0.16792021,64330.0,64328.0,0.04659628]
[1724548445785,0.24555281,64330.0,64328.0,0.04659628]
[1724548446381,4e-05,64329.0,64328.0,0.04659628]
[1724548446581,4e-05,64329.0,64327.0,0.12428628]
[1724548447286,0.06199814,64328.0,64327.0,0.07769]
[1724548447493,0.10729814,64328.0,64327.0,0.07769]
[1724548448379,0.10729814,64328.0,64327.0,0.12425535]
[1724548448583,0.15429814,64328.0,64327.0,0.12425535]
[1724548449486,0.09234,64328.0,64327.0,0.12425535]
[1724548449894,0.17634,64328.0,64327.0,0.12425535]
[1724548450191,0.17834,64328.0,64327.0,0.12425535]
[1724548450388,0.17834,64328.0,64327.0,0.07769]
[1724548452091,0.17834,64328.0,64327.0,0.12425535]
[1724548452286,0.17834,64328.0,64327.0,0.07769]
[1724548455489,0.09834,64328.0,64327.0,0.07769]
[1724548456893,0.09834,64328.0,64323.0,0.04656535]
[1724548456894,0.16029814,64328.0,64323.0,0.04656535]
[1724548457099,0.04645593,64325.0,64322.0,0.12426135]
[1724548457284,0.04645593,64325.0,64322.0,0.08159746]
[1724548457789,4e-05,64323.0,64322.0,0.08159746]
[1724548458794,4e-05,64323.0,64322.0,0.08359746]
[1724548460289,4e-05,64323.0,64322.0,0.08659746]
[1724548461392,4e-05,64323.0,64322.0,0.16659746]
[1724548464892,4e-05,64323.0,64322.0,0.08659746]
[1724548466242,4e-05,64323.0,64322.0,0.13316281]
[1724548466795,4e-05,64323.0,64322.0,0.082696]
[1724548466796,0.04649593,64323.0,64322.0,0.082696]
[1724548468295,4e-05,64323.0,64322.0,0.082696]
[1724548469203,0.58049314,64323.0,64322.0,0.05154611]
[1724548469503,0.518535,64323.0,64322.0,0.005]
[1724548471002,0.518535,64323.0,64317.0,0.00023321]
[1724548471003,0.077702,64318.0,64317.0,0.00023321]
[1724548471234,0.21963518,64318.0,64317.0,0.00023321]
[1724548471812,0.157702,64318.0,64317.0,0.00023321]
[1724548471990,0.157742,64318.0,64317.0,0.00023321]
[1724548472899,0.157742,64318.0,64317.0,0.00323321]
[1724548473091,0.157742,64318.0,64317.0,0.00523321]
[1724548474498,0.157742,64318.0,64317.0,0.00323321]
[1724548474898,0.077709,64312.0,64311.0,0.04654611]
[1724548475098,0.518509,64312.0,64311.0,0.04654611]
[1724548475704,0.518549,64312.0,64311.0,0.04654611]
[1724548476302,0.519549,64312.0,64311.0,0.05354611]
[1724548476709,0.520549,64312.0,64311.0,0.06154611]
[1724548481005,0.520549,64312.0,64311.0,0.015]
[1724548482019,0.520549,64312.0,64305.0,0.00023321]
[1724548482020,0.077716,64306.0,64305.0,0.00023321]
[1724548482312,0.157716,64306.0,64305.0,0.00023321]
[1724548482718,0.157756,64306.0,64305.0,0.00023321]
[1724548483424,0.158756,64306.0,64305.0,0.01423321]
[1724548483621,0.519556,64306.0,64305.0,0.01423321]
[1724548484220,0.520556,64306.0,64305.0,0.02423321]
[1724548486215,0.077725,64299.0,64297.0,0.3608]
[1724548486528,0.08,64298.0,64297.0,0.3608]
[1724548487011,0.08004,64298.0,64297.0,0.3608]
[1724548487616,0.08104,64298.0,64297.0,0.3708]
[1724548489122,0.08204,64298.0,64297.0,0.3708]
[1724548490228,0.0859636,64298.0,64297.0,0.3708]
[1724548490829,0.1636896,64298.0,64297.0,0.3708]
[1724548491935,0.1636896,64298.0,64297.0,0.01]
[1724548493527,0.5244896,64298.0,64297.0,0.01]
[1724548495238,0.57085093,64298.0,64297.0,0.01]
[1724548495541,0.5244896,64298.0,64297.0,0.01]
[1724548496532,0.57085093,64298.0,64297.0,0.01]
[1724548496737,0.5244896,64298.0,64297.0,0.01]
[1724548497237,0.57085093,64298.0,64297.0,0.01]
[1724548498632,0.5244896,64298.0,64297.0,0.01]
[1724548500339,0.58630471,64298.0,64297.0,0.01]
[1724548501333,0.5244896,64298.0,64297.0,0.01]
[1724548503538,0.077733,64292.0,64291.0,0.00023321]
[1724548503740,0.20415307,64292.0,64291.0,0.00023321]
[1724548503932,0.157733,64292.0,64291.0,0.00023321]
[1724548504339,0.157773,64292.0,64291.0,0.00023321]
[1724548504536,0.518573,64292.0,64291.0,0.00023321]
[1724548504835,0.520573,64292.0,64291.0,0.00123321]
[1724548505155,0.987213,64292.0,64291.0,0.00123321]
[1724548505862,0.986213,64292.0,64291.0,0.00023321]
[1724548506137,0.987213,64292.0,64291.0,0.00123321]
[1724548507547,0.987213,64292.0,64291.0,0.00023321]
[1724548508239,0.986213,64292.0,64291.0,0.00023321]
[1724548508538,0.987213,64292.0,64291.0,0.00023321]
[1724548511145,0.626413,64292.0,64291.0,0.00023321]
[1724548511343,0.987213,64292.0,64291.0,0.00023321]
[1724548513948,0.077738,64288.0,64287.0,4e-05]
[1724548514152,0.21961794,64288.0,64287.0,4e-05]
[1724548514655,0.21965794,64288.0,64287.0,4e-05]
[1724548515156,0.22165794,64288.0,64287.0,4e-05]
[1724548515347,0.22163824,64288.0,64287.0,4e-05]
[1724548515954,0.159778,64288.0,64287.0,4e-05]
[1724548517360,0.2374106,64288.0,64287.0,4e-05]
[1724548517742,0.2374106,64288.0,64278.0,0.07775]
[1724548517943,0.2374106,64288.0,64273.0,0.0473]
[1724548517944,0.12639374,64279.0,64273.0,0.09384611]
[1724548518150,0.12639374,64279.0,64273.0,0.17160211]
[1724548518151,0.08,64274.0,64273.0,0.17160211]
[1724548518747,0.08,64274.0,64273.0,0.12895464]
[1724548519353,0.081,64274.0,64273.0,0.12895464]
[1724548521059,0.082,64274.0,64273.0,0.12895464]
[1724548522849,0.08204,64274.0,64273.0,0.12895464]
[1724548523962,0.00204,64274.0,64273.0,0.20895464]
[1724548527661,0.00204,64274.0,64273.0,0.25550075]
[1724548528370,0.00204,64274.0,64273.0,0.20895464]
[1724548529757,0.00204,64274.0,64273.0,0.12895464]
[1724548532363,0.08204,64274.0,64273.0,0.12895464]
[1724548533459,0.12843374,64274.0,64273.0,0.12895464]
[1724548534567,0.08204,64274.0,64273.0,0.12895464]
[1724548537466,0.08204,64274.0,64273.0,0.20895464]
[1724548537467,0.00204,64274.0,64273.0,0.20895464]
[1724548539175,0.06185832,64281.0,64273.0,0.59795864]
[1724548539370,0.00023321,64282.0,64280.0,0.08]
[1724548539371,0.04665754,64282.0,64280.0,0.08]
[1724548539576,0.00023321,64282.0,64281.0,0.0478]
[1724548539881,0.04642433,64287.0,64286.0,0.07774]
[1724548540073,0.04642433,64287.0,64286.0,0.21986525]
[1724548540272,0.00383248,64294.0,64286.0,0.21986525]
[1724548540273,0.037375,64289.0,64288.0,0.077738]
[1724548540484,0.0776326,64299.0,64288.0,0.077738]
[1724548540485,0.037375,64292.0,64288.0,0.4408]
[1724548540675,0.06185832,64297.0,64296.0,0.077728]
[1724548540883,0.14185832,64297.0,64296.0,0.077728]
[1724548541086,0.08,64297.0,64296.0,0.12429639]
[1724548541275,0.14188383,64297.0,64296.0,0.12429639]
[1724548541469,0.08,64297.0,64296.0,0.077728]
[1724548542481,0.081,64297.0,64296.0,0.077728]
[1724548542874,0.082,64297.0,64296.0,0.077728]
[1724548543873,0.082,64297.0,64292.0,0.04656839]
[1724548544075,0.082,64297.0,64290.0,0.00023321]
[1724548544076,0.157731,64294.0,64290.0,0.00023321]
[1724548544379,0.08,64291.0,64290.0,0.00023321]
[1724548544987,0.08004,64291.0,64290.0,0.00023321]
[1724548545883,0.08104,64291.0,64290.0,0.00023321]
[1724548546580,0.08104,64291.0,64290.0,0.07796821]
[1724548546780,0.08204,64291.0,64290.0,0.07796821]
[1724548547583,0.00204,64291.0,64290.0,0.07796821]
[1724548548777,0.00204,64291.0,64290.0,0.43876821]
[1724548549584,0.00204,64291.0,64290.0,0.48525029]
[1724548549975,0.00204,64291.0,64290.0,0.43876821]
[1724548550175,0.00204,64291.0,64290.0,0.48524878]
[1724548551183,0.00204,64291.0,64290.0,0.12444878]
[1724548551486,0.00204,64291.0,64290.0,0.48524878]
[1724548552083,0.049,64301.0,64300.0,0.077723]
[1724548552288,0.00023321,64303.0,64299.0,0.08]
[1724548552589,0.00023321,64303.0,64302.0,0.077721]
[1724548552883,0.00023321,64303.0,64302.0,0.518521]
[1724548554279,0.00023321,64303.0,64302.0,0.518561]
[1724548555080,0.00023321,64303.0,64302.0,0.5224535]
[1724548555782,0.00123321,64303.0,64302.0,0.5224535]
[1724548558384,0.00123321,64303.0,64302.0,0.1616535]
[1724548558684,0.00123321,64303.0,64302.0,0.5224535]
[1724548563389,0.00123321,64303.0,64302.0,0.1616535]
[1724548563616,0.00123321,64303.0,64302.0,0.5224535]
[1724548566385,0.00123321,64303.0,64302.0,0.1616535]
[1724548566576,0.00123321,64303.0,64302.0,0.5224535]
[1724548568584,0.00123321,64303.0,64302.0,0.56892273]
[1724548569586,0.00123321,64303.0,64302.0,0.5224535]
[1724548571281,0.00123321,64303.0,64302.0,0.56894873]
[1724548571688,0.00123321,64303.0,64302.0,0.5224535]
[1724548571888,0.00123321,64303.0,64302.0,0.56894873]
[1724548572589,0.00123321,64303.0,64302.0,0.20814873]
[1724548572791,0.00123321,64303.0,64302.0,0.56894873]
[1724548576089,0.00123321,64303.0,64302.0,0.5224535]
[1724548576491,0.00123321,64303.0,64302.0,0.56894873]
[1724548577693,0.00123321,64303.0,64302.0,0.5224535]
[1724548579789,0.00123321,64303.0,64302.0,0.1616535]
[1724548580388,0.00123321,64303.0,64302.0,0.22374481]
[1724548580695,0.00123321,64303.0,64302.0,0.1616535]
[1724548583096,0.00123321,64303.0,64302.0,0.5224535]
[1724548583597,0.15895321,64303.0,64302.0,0.3647325]
[1724548583790,0.25745321,64303.0,64302.0,0.42690867]
[1724548584154,0.25745321,64303.0,64302.0,0.3647325]
[1724548585100,0.25745321,64303.0,64302.0,0.0039325]
[1724548585286,0.25745321,64303.0,64302.0,0.05055552]
[1724548585892,0.33508581,64303.0,64302.0,0.0039325]
[1724548586097,0.33508581,64303.0,64302.0,0.04666518]
[1724548586293,0.25745321,64303.0,64302.0,0.04666518]
[1724548586498,1.12401321,64303.0,64302.0,0.04666518]
[1724548586793,0.077732,64293.0,64292.0,0.04662301]
[1724548586986,0.46600207,64293.0,64289.0,0.04662301]
[1724548587190,0.11850207,64292.0,64287.0,0.04662301]
[1724548587390,0.17069115,64292.0,64284.0,0.04662301]
[1724548587602,0.0468,64291.0,64284.0,0.04662301]
[1724548587791,0.12423115,64291.0,64283.0,0.12436701]
[1724548587984,0.20196515,64291.0,64285.0,0.077741]
[1724548588384,0.124574,64291.0,64285.0,0.077741]
[1724548588585,0.124574,64291.0,64285.0,0.08163905]
[1724548588796,0.125574,64291.0,64285.0,0.08163905]
[1724548589799,0.126574,64291.0,64285.0,0.08163905]
[1724548589995,0.487374,64291.0,64285.0,0.08163905]
[1724548590297,0.54919328,64291.0,64285.0,0.08163905]
[1724548591290,0.487374,64291.0,64285.0,0.08163905]
[1724548592091,0.954014,64291.0,64285.0,0.077741]
[1724548592895,0.954014,64291.0,64286.0,0.07774]
[1724548594188,0.954014,64291.0,64283.0,0.00387068]
[1724548594505,0.954014,64291.0,64281.0,8e-05]